[Event "NED-ch U20 Youth 2019"]
[Site "Assen"]
[Date "2019.04.30"]
[Round "3.4"]
[White "Van Dael, Siem"]
[Black "Mesman, Edwyn"]
[Result "1/2-1/2"]
[ECO "B15"]
[WhiteElo "2206"]
[BlackElo "2224"]
[Annotator "NA"]
[PlyCount "159"]
[EventDate "2019.04.28"]
[EventType "swiss"]
[EventCountry "NED"]
[SourceTitle "playchess.com"]
[Source "ChessBase"]
[SourceQuality "1"]
[TimeControl "40/5400+30:1800+30"]

1. e4 {[%emt 0:00:00]} c6 {[%emt 0:00:00]} 2. Nc3 {[%emt 0:03:28]} d5 {[%emt 0:00:09]} 3. d4 {[%emt 0:00:40]} dxe4 {[%emt 0:00:09]} 4. Nxe4 {[%emt 0:00:08]} Nf6 {[%emt 0:00:08]} 5. Nxf6+ {[%emt 0:01:18]} exf6 {[%emt 0:00:12]} 6. c3 {[%emt 0:00:16]} Bd6 {[%emt 0:00:12]} 7. Bd3 {[%emt 0:00:05]} O-O {[%emt 0:00:04]} 8. Qc2 {[%emt 0:00:05]} Re8+ {[%emt 0:00:03] B15: Caro-Kann: 3 Nc3: 3...g6 and 3...dxe4 4 Nxe4 Nf6 5 Nxf6+ exf6} 9. Ne2 {[%emt 0:00:05]} (9. Be3 h6 10. Ne2 Na6 11. O-O Nc7 12. c4 Bg4 13. h3 Bxe2 14. Bxe2 Ne6 15. Rad1 Qc7 16. Bg4 Rad8 17. Rfe1 Bf4 18. Bxf4 Nxf4 19. Rxe8+ Rxe8 {½-½ (58) Svidler,P (2756)-Carlsen,M (2839) Porto Carras 2018}) 9... h5 {[%emt 0:00:04]} 10. Be3 {[%emt 0:03:37]} Nd7 {[%emt 0:00:47]} 11. O-O-O {[%emt 0:01:47]} Nf8 {[%emt 0:00:14]} 12. Ng3 {[%emt 0:02:23]} g6 {[%emt 0:00:32]} 13. Ne4 {[%emt 0:16:46]} Be6 {[%emt 0:02:14]} 14. Kb1 {[%emt 0:06:53]} Be7 {[%emt 0:07:02]} 15. h4 {[%emt 0:02:49]} Qd5 $146 {[%emt 0:10:51]} ({Predecessor:} 15... b5 16. f3 f5 17. Ng5 Bxg5 18. Bxg5 Qd5 19. b3 a5 20. Bh6 Kh7 21. Bxf8 {½-½ (21) Marosi,L (2325)-Buzas,B (2213) Zalakaros 2018}) 16. c4 {[%emt 0:02:26]} Qd8 {[%emt 0:04:41]} 17. Nc3 {[%emt 0:04:24]} Rc8 {[%emt 0:02:56]} 18. Qb3 {[%emt 0:15:57]} b5 {[%emt 0:15:10]} 19. d5 $1 {[%emt 0:00:44]} bxc4 {[%emt 0:00:13]} 20. Bxc4 {[%emt 0:00:10]} cxd5 $1 {[%emt 0:00:06]} 21. Nxd5 {[%emt 0:02:43]} Qa5 $2 {[%emt 0:01:26] [#]} (21... Kg7 $11) 22. Nxe7+ {[%emt 0:07:50]} (22. Qb5 $1 $16 {[%cal Rb5a5]} Qxb5 23. Bxb5) 22... Rxe7 {[%emt 0:00:11]} 23. Bxe6 {[%emt 0:00:06]} Nxe6 {[%emt 0:02:55]} 24. Rd5 {[%emt 0:02:06]} Qa6 $1 {[%emt 0:01:30]} 25. Qd3 {[%emt 0:03:27]} Qa4 {[%emt 0:04:34]} 26. g3 {[%emt 0:03:22]} Rec7 {[%emt 0:15:44]} 27. Rd1 {[%emt 0:07:12]} Kg7 {[%emt 0:01:36]} 28. f4 {[%emt 0:06:18]} Nc5 $11 {[%emt 0:07:57]} 29. Qd4 {[%emt 0:01:08]} Qxd4 {[%emt 0:03:53]} 30. R5xd4 {[%emt 0:02:49]} Re8 {[%emt 0:01:51]} 31. Bd2 {[%emt 0:00:09]} Ne4 {[%emt 0:00:39]} 32. Ba5 {[%emt 0:00:46]} Rb7 {[%emt 0:03:53]} 33. Rd7 {[%emt 0:01:35]} Rxd7 {[%emt 0:05:09]} 34. Rxd7 {[%emt 0:00:06]} Nxg3 {[%emt 0:00:05]} 35. Rxa7 {[%emt 0:00:04]} g5 {[%emt 0:00:06]} 36. fxg5 {[%emt 0:00:44]} fxg5 {[%emt 0:00:07]} 37. hxg5 {[%emt 0:01:00]} h4 {[%emt 0:00:09]} 38. Bc7 {[%emt 0:00:32]} Kg6 {[%emt 0:00:44]} 39. b4 {[%emt 0:00:53]} Ne4 {[%emt 0:02:22]} 40. a4 {[%emt 0:01:53]} Nc3+ {[%emt 0:06:27]} 41. Kb2 {[%emt 0:04:51]} Nd5 {[%emt 0:03:54]} 42. Bd6 {[%emt 0:07:00]} Re6 {[%emt 0:03:27]} 43. Bc5 {[%emt 0:02:10]} h3 {[%emt 0:01:27]} 44. Ra8 {[%emt 0:00:28]} Kxg5 {[%emt 0:01:47]} 45. Rd8 {[%emt 0:00:38]} Nf4 {[%emt 0:03:04]} 46. Rd1 {[%emt 0:06:24]} Kg4 {[%emt 0:10:46]} 47. b5 {[%emt 0:04:59]} h2 {[%emt 0:00:54]} 48. Rh1 {[%emt 0:06:08]} Kg3 {[%emt 0:03:51]} 49. Bg1 {[%emt 0:00:57]} hxg1=Q {[%emt 0:03:13]} 50. Rxg1+ {[%emt 0:00:04]} Kh4 {[%emt 0:01:31]} 51. Rf1 {[%emt 0:00:34]} Kg4 {[%emt 0:00:06]} 52. Kb3 {[%emt 0:00:23]} f5 {[%emt 0:00:25]} 53. a5 {[%emt 0:00:53]} Nd5 {[%emt 0:00:38]} 54. Rd1 {[%emt 0:01:27]} Ne3 {[%emt 0:00:53]} 55. Rg1+ {[%emt 0:00:11]} Kh3 {[%emt 0:02:10]} 56. b6 {[%emt 0:00:16]} Re5 {[%emt 0:00:34]} 57. Ka4 {[%emt 0:01:37]} Rxa5+ {[%emt 0:02:08]} 58. Kxa5 {[%emt 0:00:05]} Nc4+ {[%emt 0:00:04]} 59. Kb5 {[%emt 0:00:09]} Nxb6 {[%emt 0:00:04]} 60. Rf1 {[%emt 0:01:24]} Nd5 {[%emt 0:00:35]} 61. Rxf5 {[%emt 0:00:13]} Nc3+ {[%emt 0:00:13]} 62. Kc4 {[%emt 0:00:10]} Ne4 {[%emt 0:00:24]} 63. Kd4 {[%emt 0:00:28]} Ng3 {[%emt 0:00:17]} 64. Rg5 {[%emt 0:00:09]} Kh4 {[%emt 0:00:36]} 65. Rg8 {[%emt 0:00:15]} Nh5 {[%emt 0:00:59]} 66. Ke5 {[%emt 0:00:31]} Ng3 {[%emt 0:01:08]} 67. Rg7 {[%emt 0:00:47]} Nh5 {[%emt 0:00:21]} 68. Rg6 {[%emt 0:00:09]} Kh3 {[%emt 0:00:46]} 69. Ke4 {[%emt 0:00:43]} Ng3+ {[%emt 0:00:36]} 70. Kf3 {[%emt 0:02:13]} Nh5 {[%emt 0:00:24]} 71. Rg4 {[%emt 0:00:00]} Nf6 {[%emt 0:00:22]} 72. Rg5 {[%emt 0:00:18]} Kh4 {[%emt 0:00:22]} 73. Rf5 {[%emt 0:00:34]} Nh5 {[%emt 0:00:38]} 74. Re5 {[%emt 0:00:33]} Ng3 {[%emt 0:00:41]} 75. Re8 {[%emt 0:00:28]} Nh5 {[%emt 0:00:12]} 76. Rg8 {[%emt 0:00:13]} Kh3 {[%emt 0:00:33]} 77. Rg2 {[%emt 0:00:32]} Kh4 {[%emt 0:00:30]} 78. Rg1 {[%emt 0:00:09]} Nf6 {[%emt 0:00:22]} 79. Kf4 {[%emt 0:01:01]} Nh5+ {[%emt 0:00:14]} 80. Kf3 {[%emt 0:00:08]} 1/2-1/2

[Event "NED-ch U20 Youth 2019"]
[Site "Assen"]
[Date "2019.04.30"]
[Round "3.5"]
[White "Halfhide, Sebastian"]
[Black "Van Foreest, Machteld"]
[Result "1-0"]
[ECO "A28"]
[WhiteElo "2274"]
[BlackElo "2065"]
[Annotator "NA"]
[PlyCount "69"]
[EventDate "2019.04.28"]
[EventType "swiss"]
[EventCountry "NED"]
[SourceTitle "playchess.com"]
[Source "ChessBase"]
[SourceQuality "1"]
[TimeControl "40/5400+30:1800+30"]

{[%evp 11,47,11,32767,32767,32767,0,-5,0,-3,-10,-8,-7,-10,-11,53,20,21,32767,23,12,52,72,89,59,264,430,464,283,32767,32767,32767,368,32767,270,32767,32767,319,315]} 1. c4 {[%emt 0:00:00]} e5 {[%emt 0:00:00]} 2. Nc3 {[%emt 0:00:00]} Nf6 {[%emt 0:00:00]} 3. Nf3 {[%emt 0:00:08]} Nc6 {[%emt 0:00:00]} 4. e3 {[%emt 0:00:33]} Be7 {[%emt 0:12:44]} 5. d4 {[%emt 0:02:13]} exd4 {[%emt 0:06:54]} 6. exd4 {[%emt 0:01:41] A28: English Opening: Four Knights Variation} d5 {[%emt 0:02:14]} 7. h3 {[%emt 0:07:47]} (7. cxd5 Nxd5 8. Bd3 O-O 9. O-O Bg4 10. Be4 Nf6 11. Bxc6 bxc6 12. h3 Bxf3 13. Qxf3 Qxd4 14. Qxc6 Bd6 15. Rd1 Qe5 16. g3 Qf5 17. Kg2 Rab8 18. Qf3 Qxf3+ 19. Kxf3 Be5 20. Rd3 {½-½ (20) Ding,L (2777)-Harikrishna,P (2744) Riadh 2017}) 7... O-O {[%emt 0:01:19]} 8. cxd5 {[%emt 0:04:01]} Nxd5 {[%emt 0:00:37]} 9. Bd3 {[%emt 0:03:15]} Bb4 {[%emt 0:06:11]} 10. O-O {[%emt 0:08:10]} Nxc3 {[%emt 0:04:41]} 11. bxc3 {[%emt 0:00:34]} Bxc3 {[%emt 0:01:45] Double Attack [#]} 12. Bxh7+ $1 {[%emt 0:14:19]} Kh8 {[%emt 0:04:10]} (12... Kxh7 $11 13. Qd3+ Kg8 14. Qxc3 Qd5) 13. Ng5 $146 {[%emt 0:09:14]} ({Predecessor:} 13. Bg5 Qd5 {0-1 (48) Paschall,W (2351)-Erdelyi,Z (2363) Hungary 2008}) 13... g6 $1 {[%emt 0:07:48]} ({Worse is} 13... Bxa1 14. Qh5 Qxg5 15. Bxg5 Bg4 16. hxg4 Rfe8 17. Bg6+ {[%mdl 64] Discovered Attack} Kg8 18. Qh7+ Kf8 19. Qh8#) 14. Nxf7+ {[%emt 0:02:09]} Rxf7 {[%emt 0:00:48]} 15. Bxg6 {[%emt 0:00:20]} Rf5 {[%emt 0:16:57]} 16. Bxf5 {[%emt 0:05:46]} Bxf5 {[%emt 0:00:14]} 17. Qh5+ {[%emt 0:00:55] Double Attack} Kg8 $2 {[%emt 0:05:00]} (17... Bh7 $16 {might work better.}) 18. Qxf5 {[%emt 0:01:15]} Bxa1 {[%emt 0:00:14]} 19. d5 {[%emt 0:17:03]} Ne7 {[%emt 0:07:50]} 20. Qe6+ {[%emt 0:00:46]} Kh8 {[%emt 0:01:47]} 21. Bg5 {[%emt 0:03:56]} Qxd5 {[%emt 0:01:42]} 22. Qxe7 {[%emt 0:01:21]} Bg7 {[%emt 0:00:37]} 23. Bf6 {[%emt 0:02:59]} Rg8 {[%emt 0:00:18]} 24. g3 $18 {[%emt 0:01:50]} Qh5 {[%emt 0:07:23]} 25. Rb1 {[%emt 0:05:52]} b6 {[%emt 0:02:03]} 26. Rb4 {[%emt 0:00:41]} Qd1+ {[%emt 0:01:02]} 27. Kh2 {[%emt 0:00:08]} Bxf6 {[%emt 0:01:19]} 28. Qxf6+ {[%emt 0:00:05]} Rg7 {[%emt 0:00:05]} 29. Rh4+ {[%emt 0:01:12]} Kg8 {[%emt 0:00:03]} 30. Qe6+ {[%emt 0:00:31]} Rf7 {[%emt 0:00:08]} 31. Qg6+ {[%emt 0:01:40]} Kf8 {[%emt 0:00:13]} 32. Rh8+ {[%emt 0:00:30]} Ke7 {[%emt 0:00:04]} 33. Qg5+ {[%emt 0:01:43]} Rf6 {[%emt 0:00:05]} 34. Qe5+ {[%emt 0:00:21]} Kf7 {[%emt 0:00:30]} 35. Qe8+ {[%emt 0:00:18]} 1-0

[Event "NED-ch U20 Youth 2019"]
[Site "Assen"]
[Date "2019.04.30"]
[Round "3.6"]
[White "Gijsen, William"]
[Black "Elgersma, Simon"]
[Result "0-1"]
[ECO "C12"]
[WhiteElo "2041"]
[BlackElo "2137"]
[Annotator "NA"]
[PlyCount "58"]
[EventDate "2019.04.28"]
[EventType "swiss"]
[EventCountry "NED"]
[SourceTitle "playchess.com"]
[Source "ChessBase"]
[SourceQuality "1"]
[TimeControl "40/5400+30:1800+30"]

{[%evp 17,51,39,32767,32767,32767,32767,32767,32767,197,206,32767,-43,32767,32767,32767,0,0,-82,-74,-86,-23,-47,14,1,20,10,10,7,27,0,0,-111,-99,-251,-250,-502]} 1. e4 {[%emt 0:00:00]} e6 {[%emt 0:00:00]} 2. d4 {[%emt 0:00:00]} d5 {[%emt 0:00:00]} 3. Nc3 {[%emt 0:00:00]} Nf6 {[%emt 0:01:14]} 4. Bg5 {[%emt 0:00:00]} Bb4 {[%emt 0:00:32]} 5. e5 {[%emt 0:00:00]} h6 {[%emt 0:00:05]} 6. Bd2 {[%emt 0:00:01]} Bxc3 {[%emt 0:00:11]} 7. bxc3 {[%emt 0:00:02]} Ne4 {[%emt 0:00:02]} 8. Bc1 {[%emt 0:00:20]} c5 {[%emt 0:08:16] C12: French: Classical System: McCutcheon Variation} 9. Ne2 {[%emt 0:01:55]} Qa5 {[%emt 0:10:07]} (9... Nc6 10. f3 Ng5 11. Be3 c4 12. h4 Nh7 13. h5 Qa5 14. f4 Bd7 15. g4 O-O-O 16. Qc1 {½-½ (53) Warakomski,T (2511)-Sieciechowicz,M (2409) Poland 2017}) 10. f3 {[%emt 0:02:21]} Nxc3 {[%emt 0:10:19]} 11. Qd2 {[%emt 0:00:15]} cxd4 {[%emt 0:00:11]} 12. Nxd4 {[%emt 0:00:10]} Qc5 {[%emt 0:12:46] [#]} 13. a4 $1 {[%emt 0:19:37]} ({Weaker is} 13. Bb2 Na4 $15) 13... Nc6 $146 {[%emt 0:35:31] [#]} ({Predecessor:} 13... Bd7 14. Ba3 Qc8 15. Bb4 Nxa4 16. Nb5 Bxb5 17. Bxb5+ {½-½ (78) Gilevich,A (2407)-Di Benedetto,E (2269) Chianciano Terme 2018}) 14. Nxc6 $2 {[%emt 0:00:43]} (14. Nb3 $1 $18 {[%cal Rb3c5]} Qb4 15. Ba3 Qh4+ 16. g3) 14... bxc6 {[%emt 0:01:16]} 15. Ba3 {[%emt 0:02:13]} Qa5 {[%emt 0:00:09]} 16. Rb1 {[%emt 0:07:33]} d4 $1 {[%emt 0:01:38]} 17. Rb3 {[%emt 0:00:36]} (17. Bd6 $11 {keeps the balance.}) 17... Qxe5+ {[%emt 0:00:31]} 18. Kf2 {[%emt 0:00:56]} f5 {[%emt 0:04:44]} (18... Bd7 $17 19. Bb2 Rb8) 19. Bc4 {[%emt 0:01:40]} Kf7 {[%emt 0:02:15]} ({Black should try} 19... f4 $15) 20. Re1 {[%emt 0:01:01]} Qf6 {[%emt 0:02:03]} 21. Qf4 {[%emt 0:02:02]} Nd5 {[%emt 0:02:33]} 22. Bxd5 $1 {[%emt 0:01:20]} cxd5 {[%emt 0:00:02]} 23. Qc7+ {[%emt 0:00:38]} Kg6 $1 {[%emt 0:00:07]} 24. Qc6 {[%emt 0:01:46]} (24. f4 $11 d3 25. Bb2) 24... e5 {[%emt 0:00:49]} 25. Bd6 $2 {[%emt 0:03:30] [#]} (25. Qxa8 $2 {too greedy.} Qh4+ {[%mdl 64] Double Attack} 26. Ke2 Ba6+ {[%mdl 64] Discovered Attack} 27. Kd1 Rxa8 $19) (25. Qxf6+ $17 gxf6 26. f4) 25... Rd8 $1 {[%emt 0:01:05]} 26. Qxd5 $19 {[%emt 0:04:50]} (26. Kg1 Bd7 27. Qc5) 26... Be6 {[%emt 0:00:57]} 27. Qxe5 {[%emt 0:01:51]} Bxb3 {[%emt 0:01:42]} 28. Qxf6+ {[%emt 0:01:01]} gxf6 {[%emt 0:00:15]} 29. Be7 {[%emt 0:00:19]} Bxc2 {[%emt 0:00:14]} 0-1

[Event "NED-ch U20 Youth 2019"]
[Site "Assen"]
[Date "2019.04.30"]
[Round "3.7"]
[White "Van Hoorn, Geert"]
[Black "Van Roon, Sjoerd"]
[Result "1/2-1/2"]
[ECO "C45"]
[WhiteElo "1965"]
[BlackElo "2115"]
[Annotator "NA"]
[PlyCount "115"]
[EventDate "2019.04.28"]
[EventType "swiss"]
[EventCountry "NED"]
[SourceTitle "playchess.com"]
[Source "ChessBase"]
[SourceQuality "1"]
[TimeControl "40/5400+30:1800+30"]

1. e4 {[%emt 0:00:00]} e5 {[%emt 0:00:00]} 2. Nf3 {[%emt 0:00:00]} Nc6 {[%emt 0:00:00]} 3. d4 {[%emt 0:00:00]} exd4 {[%emt 0:00:00]} 4. Nxd4 {[%emt 0:00:00]} Nf6 {[%emt 0:00:00]} 5. Nxc6 {[%emt 0:00:13]} bxc6 {[%emt 0:00:00]} 6. e5 {[%emt 0:00:07]} Qe7 {[%emt 0:00:00]} 7. Qe2 {[%emt 0:00:10]} Nd5 {[%emt 0:00:00]} 8. h4 {[%emt 0:00:51]} Qe6 {[%emt 0:01:00] C45: Scotch Game} 9. c4 {[%emt 0:06:19]} (9. Nd2 d6 10. exd6 Bxd6 11. Nc4 Bc5 12. a3 O-O 13. Qxe6 Bxe6 14. Bd3 Rfe8 15. O-O a5 16. Ne5 {½-½ (38) Caruana,F (2828)-Robson,R (2667) Saint Louis 2019}) 9... Nb6 {[%emt 0:05:06]} 10. g3 {[%emt 0:03:57]} Bb7 {[%emt 0:02:42]} 11. b3 {[%emt 0:09:02]} Bb4+ $146 {[%emt 0:03:15]} ({Predecessor:} 11... c5 12. Bh3 f5 13. O-O g6 14. Nc3 Bg7 15. Bf4 O-O 16. Rad1 {½-½ (36) Perunovic,M (2597)-Van Foreest,L (2500) Skopje 2018}) 12. Bd2 {[%emt 0:01:46]} c5 {[%emt 0:00:12]} 13. Bh3 $1 {[%emt 0:07:27]} Qc6 {[%emt 0:07:01]} 14. Rg1 {[%emt 0:05:10]} O-O-O {[%emt 0:02:16]} 15. Nc3 {[%emt 0:01:31]} Rhe8 {[%emt 0:01:16]} 16. O-O-O {[%emt 0:01:39]} Ba3+ {[%emt 0:00:32]} 17. Kc2 {[%emt 0:07:17]} Qg6+ {[%emt 0:03:08]} 18. Qd3 {[%emt 0:00:25]} Qxd3+ {[%emt 0:00:04]} 19. Kxd3 {[%emt 0:00:10]} Rxe5 {[%emt 0:00:26]} 20. Bf4 {[%emt 0:01:51]} Re7 {[%emt 0:05:53]} 21. Nb5 {[%emt 0:01:05]} Bb4 {[%emt 0:02:08]} 22. Bxc7 {[%emt 0:05:27]} Be4+ {[%emt 0:03:48]} 23. Ke3 {[%emt 0:10:03]} Bg2+ {[%emt 0:01:01]} 24. Kf4 {[%emt 0:03:06]} Bxh3 {[%emt 0:20:14]} (24... Re4+ $15 {stays ahead.} 25. Kf5 g6+ 26. Kg5 Bxh3) 25. Bxd8 {[%emt 0:00:16]} Kxd8 {[%emt 0:00:06]} 26. g4 {[%emt 0:00:31]} f5 {[%emt 0:04:52]} 27. gxf5 {[%emt 0:01:17]} h5 {[%emt 0:15:36]} 28. Rg3 {[%emt 0:02:57]} ({Weaker is} 28. Nxa7 Rf7 $14) 28... Bg4 {[%emt 0:03:23]} 29. f3 {[%emt 0:00:34]} a6 {[%emt 0:00:05]} 30. Nd6 {[%emt 0:02:10]} Bc3 {[%emt 0:00:04]} 31. fxg4 {[%emt 0:04:22]} Be5+ {[%emt 0:00:27]} 32. Kf3 {[%emt 0:00:16]} Bxg3 {[%emt 0:01:16]} 33. Kxg3 {[%emt 0:01:12]} Re2 $2 {[%emt 0:00:26]} (33... hxg4 34. h5 (34. Kxg4 Re2 $18) 34... Re3+ 35. Kxg4 Ke7) 34. Nb7+ {[%emt 0:04:05]} Ke7 $18 {[%emt 0:00:39]} 35. g5 {[%emt 0:05:07]} Re3+ {[%emt 0:04:05]} 36. Kf4 {[%emt 0:01:41]} Re2 {[%emt 0:00:05]} 37. Nxc5 {[%emt 0:01:59]} Rxa2 {[%emt 0:00:24]} 38. Re1+ {[%emt 0:00:23]} Kd6 {[%emt 0:00:05]} 39. Ne4+ {[%emt 0:00:52]} Kc6 {[%emt 0:00:04]} 40. f6 {[%emt 0:01:10]} gxf6 {[%emt 0:00:03]} 41. gxf6 {[%emt 0:30:43]} d5 {[%emt 0:30:10]} 42. cxd5+ {[%emt 0:10:18]} Nxd5+ {[%emt 0:00:12]} 43. Ke5 {[%emt 0:01:03]} Nxf6 {[%emt 0:01:07]} 44. Nxf6 {[%emt 0:00:00]} a5 {[%emt 0:00:00]} 45. Kd4 {[%emt 0:00:00]} a4 {[%emt 0:00:00]} 46. Kc3 {[%emt 0:00:00]} Rh2 {[%emt 0:00:00]} 47. Re6+ {[%emt 0:00:00]} Kb7 {[%emt 0:00:00]} 48. bxa4 {[%emt 0:00:00]} Rxh4 {[%emt 0:00:00]} 49. Kb3 {[%emt 0:00:00]} Rh1 {[%emt 0:00:00]} 50. Kb4 {[%emt 0:00:00]} h4 {[%emt 0:00:00]} 51. Kb5 {[%emt 0:00:00]} h3 {[%emt 0:00:00]} 52. Re7+ {[%emt 0:00:00]} Kc8 {[%emt 0:00:00]} 53. Re8+ {[%emt 0:00:00]} Kb7 {[%emt 0:00:00]} 54. Ka5 {[%emt 0:00:00]} Rf1 {[%emt 0:00:00]} 55. Re7+ {[%emt 0:00:23]} Kc6 {[%emt 0:00:00]} 56. Ng4 {[%emt 0:01:13]} Rf5+ {[%emt 0:00:00]} 57. Ka6 {[%emt 0:01:56]} Rf4 {[%emt 0:00:00]} 58. a5 {[%emt 0:04:09]} 1/2-1/2

[Event "NED-ch U20 Youth 2019"]
[Site "Assen"]
[Date "2019.04.30"]
[Round "3.8"]
[White "Achuthan, Dylan"]
[Black "Van Randtwijk, Mick"]
[Result "0-1"]
[ECO "B90"]
[WhiteElo "1863"]
[BlackElo "2168"]
[Annotator "NA"]
[PlyCount "64"]
[EventDate "2019.04.28"]
[EventType "swiss"]
[EventCountry "NED"]
[SourceTitle "playchess.com"]
[Source "ChessBase"]
[SourceQuality "1"]
[TimeControl "40/5400+30:1800+30"]

1. e4 {[%emt 0:00:00]} c5 {[%emt 0:00:00]} 2. Nf3 {[%emt 0:00:00]} d6 {[%emt 0:00:00]} 3. d4 {[%emt 0:00:00]} cxd4 {[%emt 0:00:01]} 4. Nxd4 {[%emt 0:00:00]} Nf6 {[%emt 0:00:20]} 5. Nc3 {[%emt 0:00:00]} a6 {[%emt 0:00:16]} 6. h3 {[%emt 0:00:07]} e5 {[%emt 0:01:42]} 7. Nde2 {[%emt 0:00:08]} Be6 {[%emt 0:01:10]} 8. g4 {[%emt 0:02:26] B90: Sicilian Najdorf: Unusual White 6th moves, 6 Be3 Ng4 and 6 Be3 e5} Be7 {[%emt 0:05:57]} (8... h6 9. Bg2 Nbd7 10. a4 Rc8 11. O-O Be7 12. Ng3 g6 13. Nd5 Bxd5 14. exd5 h5 15. g5 Nh7 {½-½ (52) Popov,I (2592)-Bindrich,F (2606) St Petersburg 2018}) 9. Bg2 {[%emt 0:03:09]} O-O {[%emt 0:05:25]} 10. O-O {[%emt 0:03:31]} Nc6 {[%emt 0:01:52]} 11. Kh1 $146 {[%emt 0:04:10]} ({Predecessor:} 11. Nd5 Bxd5 12. exd5 Na5 13. Ng3 g6 14. b3 Nd7 15. Bh6 Re8 16. Qe2 b5 17. Ne4 Nb7 {½-½ (35) Reyes Penas,S (2103)-Quispe Arteaga,G (2312) Collado Villalba 2018}) 11... Nd7 {[%emt 0:03:11]} 12. Nd5 {[%emt 0:07:48]} Rc8 {[%emt 0:03:26]} 13. c3 {[%emt 0:06:46]} b5 {[%emt 0:06:08]} 14. Ng3 {[%emt 0:15:47]} Re8 {[%emt 0:05:22]} 15. Nf5 {[%emt 0:22:00]} Bf8 {[%emt 0:01:23]} 16. Qf3 {[%emt 0:06:18]} Na5 {[%emt 0:12:34]} 17. Qg3 {[%emt 0:02:12]} Nc4 {[%emt 0:02:41]} (17... Bxd5 $5 18. exd5 Nc4 $11) 18. h4 {[%emt 0:09:45]} Nc5 {[%emt 0:07:51]} (18... Bxd5 $15 19. exd5 g6) 19. g5 {[%emt 0:04:25]} Kh8 {[%emt 0:05:38]} 20. h5 {[%emt 0:02:50]} Bxd5 {[%emt 0:12:31]} 21. exd5 {[%emt 0:00:14]} Qd7 {[%emt 0:00:30]} 22. Bh3 {[%emt 0:02:58]} Qb7 {[%emt 0:00:06]} 23. Bg2 $11 {[%emt 0:01:15]} e4 {[%emt 0:03:22]} 24. Bf4 {[%emt 0:05:34]} Qxd5 {[%emt 0:01:52]} 25. Nh4 {[%emt 0:00:30]} Nxb2 {[%emt 0:04:08]} 26. Qg4 {[%emt 0:00:34]} Nbd3 {[%emt 0:01:26]} 27. g6 {[%emt 0:00:27]} Nxf4 {[%emt 0:01:22]} 28. Qxf4 {[%emt 0:00:18]} Qxh5 {[%emt 0:00:25]} 29. gxf7 {[%emt 0:00:42]} Re7 {[%emt 0:01:14]} 30. Kg1 {[%emt 0:00:32]} Rxf7 {[%emt 0:00:20]} 31. Qg3 {[%emt 0:00:02]} Be7 {[%emt 0:01:07]} 32. Qh3 {[%emt 0:00:39]} Rcf8 {[%emt 0:00:34]} 0-1

[Event "NED-ch U20 Youth 2019"]
[Site "Assen"]
[Date "2019.04.30"]
[Round "3.9"]
[White "Van Doren, Bas"]
[Black "Reichardt, Robin"]
[Result "1-0"]
[ECO "C45"]
[WhiteElo "1945"]
[BlackElo "2061"]
[Annotator "NA"]
[PlyCount "117"]
[EventDate "2019.04.28"]
[EventType "swiss"]
[EventCountry "NED"]
[SourceTitle "playchess.com"]
[Source "ChessBase"]
[SourceQuality "1"]
[TimeControl "40/5400+30:1800+30"]

1. e4 {[%emt 0:00:00]} e5 {[%emt 0:00:00]} 2. Nf3 {[%emt 0:00:00]} Nc6 {[%emt 0:00:00]} 3. d4 {[%emt 0:00:00]} exd4 {[%emt 0:00:13]} 4. Nxd4 {[%emt 0:00:00]} Bc5 {[%emt 0:00:17]} 5. Be3 {[%emt 0:00:00]} Qf6 {[%emt 0:00:42]} 6. c3 {[%emt 0:00:00]} Nge7 {[%emt 0:00:27]} 7. Bc4 {[%emt 0:00:01]} O-O {[%emt 0:00:29]} 8. O-O {[%emt 0:00:51]} b6 {[%emt 0:00:44]} 9. Nc2 {[%emt 0:00:53] C45: Scotch Game} Ne5 {[%emt 0:01:37]} 10. Be2 {[%emt 0:03:58]} N5g6 {[%emt 0:03:29]} (10... Bb7 11. f4 N5g6 12. e5 Qe6 13. b4 Bxe3+ 14. Nxe3 Nh4 15. Bg4 f5 16. Be2 Kh8 {0-1 (34) Kasparov,G (2812)-Caruana,F (2795) Saint Louis 2016}) 11. g3 {[%emt 0:07:19]} Bb7 {[%emt 0:15:21]} 12. Nd2 {[%emt 0:01:55]} d5 $146 {[%emt 0:09:44]} ({Predecessor:} 12... Bxe3 13. Nxe3 d5 14. Bf3 Rad8 15. Qe2 d4 16. cxd4 Qxd4 {1-0 (49) Berg,E (2575)-Grandelius,N (2644) Sweden 2016}) 13. Bxc5 {[%emt 0:05:24]} bxc5 {[%emt 0:00:43]} 14. exd5 {[%emt 0:00:06]} Bxd5 {[%emt 0:06:00]} (14... Nxd5 $17 15. Bf3 Rad8) 15. Bf3 {[%emt 0:02:40]} Rad8 {[%emt 0:02:18]} 16. Bxd5 {[%emt 0:05:19]} Nxd5 {[%emt 0:05:57]} 17. Ne4 {[%emt 0:10:22]} Qf5 {[%emt 0:04:23]} 18. Qe2 {[%emt 0:01:55]} Rfe8 {[%emt 0:07:02]} 19. Rae1 {[%emt 0:12:09]} Re6 {[%emt 0:10:55]} (19... Qh3 $17 20. Qb5 {[#]} Ngf4 $1 {[%mdl 512]} 21. gxf4 Rxe4 22. Rxe4 Qg4+ {[%mdl 64] Double Attack} 23. Kh1 Qf3+ {[%mdl 64] Double Attack} 24. Kg1 Qxe4) 20. f3 {[%emt 0:11:10]} Qh5 {[%emt 0:15:09]} ({Better is} 20... Rb8 $11) 21. Qd2 {[%emt 0:05:45]} Ree8 {[%emt 0:04:50]} 22. Qg5 {[%emt 0:01:37]} Qxg5 {[%emt 0:01:14]} 23. Nxg5 {[%emt 0:00:15]} Ne5 {[%emt 0:00:49]} 24. f4 {[%emt 0:06:17]} Nc4 {[%emt 0:01:28]} 25. Rxe8+ {[%emt 0:06:02]} Rxe8 {[%emt 0:00:02]} 26. b3 $15 {[%emt 0:00:01]} (26. Rd1 $5 {[%cal Rd1d5]} c6 27. b3 $11) 26... Nd6 {[%emt 0:01:04]} 27. c4 {[%emt 0:03:23]} Nc3 {[%emt 0:01:50]} 28. Ne1 {[%emt 0:05:21]} h6 {[%emt 0:01:06]} 29. Ngf3 {[%emt 0:00:34]} Nxa2 {[%emt 0:00:52]} 30. Nd3 {[%emt 0:00:41]} Ne4 {[%emt 0:02:18]} 31. Ra1 {[%emt 0:00:37]} Nb4 {[%emt 0:00:06]} 32. Nxb4 {[%emt 0:01:11]} cxb4 {[%emt 0:00:02]} 33. Rxa7 {[%emt 0:00:12]} c5 {[%emt 0:00:34]} 34. Ne5 {[%emt 0:04:23]} Nd2 {[%emt 0:00:21]} 35. Nxf7 {[%emt 0:01:01]} Nxb3 {[%emt 0:00:38]} 36. Ne5 {[%emt 0:01:16]} Rd8 {[%emt 0:02:09]} 37. Rc7 {[%emt 0:01:23]} Rd1+ {[%emt 0:01:15]} 38. Kf2 {[%emt 0:01:48]} Rd4 {[%emt 0:00:44]} 39. Rc8+ {[%emt 0:01:17]} Kh7 {[%emt 0:00:09]} 40. f5 {[%emt 0:00:39]} Rd6 {[%emt 0:02:23]} 41. Ng6 {[%emt 0:05:54]} Rxg6 {[%emt 0:01:21]} 42. fxg6+ {[%emt 0:00:06]} Kxg6 {[%emt 0:00:08]} 43. Ke3 {[%emt 0:01:09]} Kf5 {[%emt 0:02:56]} 44. h3 {[%emt 0:02:58]} Ke5 {[%emt 0:02:12]} 45. Rc6 {[%emt 0:00:39]} Kf5 {[%emt 0:01:40]} 46. Kd3 {[%emt 0:01:17]} h5 {[%emt 0:02:02]} 47. Rd6 {[%emt 0:03:30]} g5 {[%emt 0:03:07]} 48. Ke3 {[%emt 0:01:09]} Ke5 {[%emt 0:02:09]} 49. Rd5+ {[%emt 0:00:38]} Kf6 {[%emt 0:00:31]} 50. Ke4 {[%emt 0:00:23]} Kg6 {[%emt 0:03:07]} 51. Rd6+ {[%emt 0:00:19]} Kf7 {[%emt 0:00:22]} 52. Kd5 {[%emt 0:00:44]} Nd2 {[%emt 0:02:21]} 53. Rb6 {[%emt 0:05:30]} Nb3 {[%emt 0:03:08]} 54. Rh6 {[%emt 0:02:44]} Nd2 {[%emt 0:07:05]} 55. Rxh5 {[%emt 0:01:23]} b3 {[%emt 0:01:06]} 56. Rh7+ {[%emt 0:00:06]} Kg6 {[%emt 0:00:30]} 57. Rb7 {[%emt 0:00:07]} Kf5 {[%emt 0:00:25]} 58. Rb6 {[%emt 0:01:23]} g4 {[%emt 0:00:39]} 59. h4 {[%emt 0:00:13]} 1-0